bitfinex-derivatives/quotes_BTCF0:USTF0_20210409
["timestamp","ask_amount","ask_price","bid_price","bid_amount"]
[1617996106217,0.42695873,58243.0,58235.0,0.23256655]
[1617996106411,0.42694354,58244.0,58236.0,0.26]
[1617996107851,0.10725655,58237.0,58236.0,0.26]
[1617996108408,0.10725655,58237.0,58236.0,1.26]
[1617996108607,0.10725655,58237.0,58236.0,0.26]
[1617996112314,3.06525655,58237.0,58236.0,0.26]
[1617996115208,0.10725655,58237.0,58236.0,0.26]
[1617996115510,0.53656583,58237.0,58236.0,0.26]
[1617996117032,0.53656583,58237.0,58236.0,0.38169]
[1617996121421,0.42930928,58237.0,58236.0,1.38169]
[1617996121924,0.4307102,58240.0,58236.0,3.16389]
[1617996122320,0.43084416,58243.0,58238.0,1.0]
[1617996122519,0.43084416,58243.0,58239.0,1.0]
[1617996122718,0.43084416,58243.0,58239.0,1.27]
[1617996122919,0.43084416,58243.0,58240.0,1.0]
[1617996123120,0.48958229,58249.0,58241.0,1.0]
[1617996123121,0.43099164,58244.0,58241.0,1.0]
[1617996123419,0.43099164,58244.0,58241.0,1.27]
[1617996123619,0.43099164,58244.0,58242.0,1.0]
[1617996123821,0.43099164,58244.0,58243.0,1.0]
[1617996124020,0.43099164,58244.0,58243.0,1.10725655]
[1617996124224,0.43117253,58251.0,58243.0,1.68252743]
[1617996124624,0.43128319,58252.0,58249.0,1.0]
[1617996124932,0.43128319,58252.0,58249.0,0.11257]
[1617996125129,0.43128319,58252.0,58250.0,0.27]
[1617996125329,0.43128319,58252.0,58251.0,1.0]
[1617996125724,0.68605459,58276.0,58251.0,1.0]
[1617996125725,0.43128606,58253.0,58251.0,1.27]
[1617996125927,0.43128606,58253.0,58252.0,0.10725655]
[1617996126125,0.43124594,58254.0,58252.0,0.10725655]
[1617996126325,0.43124594,58254.0,58252.0,0.37725655]
[1617996126925,0.43124594,58254.0,58253.0,1.0]
[1617996127172,0.10725655,58258.0,58253.0,1.0]
[1617996127173,0.43139144,58255.0,58254.0,3.5337]
[1617996127426,0.43130914,58256.0,58254.0,3.5337]
[1617996127751,0.43133333,58257.0,58255.0,0.01]
[1617996127955,0.43145559,58258.0,58255.0,1.0]
[1617996128165,0.43154582,58259.0,58257.0,1.0]
[1617996128328,0.43157923,58260.0,58259.0,1.0]
[1617996128626,0.43157923,58260.0,58258.0,1.27]
[1617996128827,0.43157923,58260.0,58259.0,0.27]
[1617996129035,0.43145061,58261.0,58259.0,1.27]
[1617996129228,0.43145061,58261.0,58259.0,1.0]
[1617996129627,0.43145061,58261.0,58260.0,2.9523]
[1617996129827,0.43145061,58261.0,58260.0,3.2223]
[1617996130028,0.43145061,58261.0,58260.0,4.05955655]
[1617996130229,0.10725655,58268.0,58260.0,4.05955655]
[1617996130429,0.10725655,58268.0,58260.0,3.32955655]
[1617996130430,0.431415,58263.0,58260.0,3.32955655]
[1617996130727,0.431415,58263.0,58260.0,4.32955655]
[1617996131028,0.431415,58263.0,58262.0,1.0]
[1617996131228,0.431415,58263.0,58262.0,1.10928]
[1617996131429,0.431415,58263.0,58262.0,1.37928]
[1617996132429,0.10725655,58268.0,58262.0,1.37928]
[1617996132430,0.43128601,58264.0,58262.0,0.37928]
[1617996132729,0.10725655,58268.0,58262.0,0.37928]
[1617996132730,0.43137149,58265.0,58262.0,1.37928]
[1617996132930,0.43137149,58265.0,58264.0,1.0]
[1617996133131,0.43131807,58266.0,58264.0,1.0]
[1617996133330,0.43131807,58266.0,58264.0,1.27]
[1617996133529,0.43131807,58266.0,58264.0,0.27]
[1617996133731,0.10725655,58268.0,58265.0,1.0]
[1617996133954,0.43152469,58269.0,58267.0,0.10725655]
[1617996134207,0.43157584,58270.0,58267.0,0.10725655]
[1617996134335,0.43145676,58271.0,58268.0,0.26]
[1617996134534,0.43153949,58272.0,58269.0,1.0]
[1617996134780,0.43153949,58272.0,58268.0,0.26]
[1617996135047,0.43153949,58272.0,58267.0,0.10725655]
[1617996135048,0.43152321,58273.0,58270.0,0.27]
[1617996135239,0.43152321,58273.0,58271.0,1.0]
[1617996135497,0.43141397,58274.0,58268.0,0.27]
[1617996135634,0.43141397,58274.0,58271.0,0.27]
[1617996135837,0.43152657,58276.0,58268.0,0.27]
[1617996136047,0.43152657,58276.0,58275.0,0.10725655]
[1617996136245,0.43152141,58277.0,58275.0,0.25549655]
[1617996136436,0.43147211,58276.0,58275.0,1.51549655]
[1617996136747,0.43163642,58278.0,58275.0,0.51549655]
[1617996137145,0.4315399,58277.0,58275.0,0.51549655]
[1617996137537,0.43140255,58279.0,58275.0,0.51549655]
[1617996137737,0.43140255,58279.0,58276.0,1.0]
[1617996138239,0.43126613,58278.0,58277.0,0.27]
[1617996138639,0.43126613,58278.0,58276.0,0.27]
[1617996138938,0.43126613,58278.0,58277.0,0.27]
[1617996139141,0.10725655,58280.0,58276.0,0.27]
[1617996139644,0.43096677,58278.0,58277.0,0.27]
[1617996139839,0.43096677,58278.0,58276.0,0.27]
[1617996140040,0.43085643,58279.0,58277.0,0.27]
[1617996140440,0.43085643,58279.0,58276.0,0.27]
[1617996140840,0.43085643,58279.0,58278.0,0.27]
[1617996141041,0.43085643,58279.0,58276.0,0.27]
[1617996141442,0.43085643,58279.0,58278.0,0.27]
[1617996141643,0.43085643,58279.0,58276.0,0.27]
[1617996141943,0.43085643,58279.0,58278.0,0.27]
[1617996142342,0.43085643,58279.0,58276.0,0.27]
[1617996142543,0.53798847,58280.0,58278.0,0.27]
[1617996143043,0.53798847,58280.0,58277.0,0.27]
[1617996143245,0.10725655,58280.0,58279.0,0.01]
[1617996143444,0.10725655,58280.0,58278.0,1.0]
[1617996143643,0.10725655,58280.0,58278.0,1.26]
[1617996143844,0.10725655,58280.0,58275.0,0.10725655]
[1617996144143,0.10725655,58280.0,58279.0,0.27]
[1617996144346,0.10725655,58280.0,58279.0,1.27]
[1617996144543,0.10725655,58280.0,58275.0,0.10725655]
[1617996144544,0.10725655,58280.0,58278.0,0.01]
[1617996144745,0.10725655,58280.0,58275.0,1.10725655]
[1617996145044,0.10725655,58280.0,58279.0,0.27]
[1617996145244,0.10725655,58280.0,58276.0,0.26]
[1617996145444,0.10725655,58280.0,58279.0,0.27]
[1617996145744,0.10725655,58280.0,58277.0,1.0]
[1617996145945,0.10725655,58280.0,58279.0,1.0]
[1617996146146,0.10725655,58286.0,58279.0,1.27]
[1617996146444,0.10725655,58286.0,58281.0,1.0]
[1617996146844,0.10725655,58286.0,58282.0,0.01]
[1617996147045,0.10725655,58286.0,58282.0,1.01]
[1617996147347,0.10725655,58286.0,58283.0,1.0]
[1617996147544,0.10725655,58286.0,58281.0,0.27]
[1617996147746,0.10725655,58286.0,58283.0,0.01]
[1617996147945,3.6733,58284.0,58283.0,0.01]
[1617996148147,3.6733,58284.0,58283.0,0.10725655]
[1617996148547,3.6733,58284.0,58266.0,0.1274]
[1617996148749,3.6733,58284.0,58283.0,0.26]
[1617996148948,3.6733,58284.0,58267.0,0.27]
[1617996149347,3.6733,58284.0,58283.0,0.27]
[1617996149548,0.53771919,58286.0,58283.0,3.4844]
[1617996150050,0.10725655,58286.0,58283.0,3.7544]
[1617996150248,0.10725655,58286.0,58283.0,3.4844]
[1617996150449,0.10725655,58286.0,58284.0,0.27]
[1617996151950,0.10725655,58286.0,58285.0,2.9477]
[1617996152351,0.10725655,58286.0,58285.0,3.06495655]
[1617996157659,0.10725655,58286.0,58285.0,2.9577]
[1617996158456,0.10725655,58286.0,58285.0,0.01]
[1617996158857,0.10725655,58286.0,58279.0,0.26]
[1617996159258,0.10725655,58286.0,58285.0,0.02]
[1617996159458,0.10725655,58286.0,58279.0,0.27]
[1617996159859,3.1286,58280.0,58278.0,0.10725655]
[1617996160262,3.1286,58280.0,58279.0,0.27]
[1617996160459,3.23585655,58280.0,58279.0,0.27]
[1617996161462,3.28805655,58280.0,58279.0,0.27]
[1617996161664,3.23585655,58280.0,58279.0,0.27]
[1617996161862,0.10725655,58280.0,58279.0,0.27]
[1617996162061,0.10725655,58280.0,58279.0,2.9471]
[1617996167866,0.10725655,58280.0,58279.0,3.07771]
[1617996168976,0.10725655,58280.0,58279.0,0.40061]
[1617996169182,3.65915655,58280.0,58279.0,0.40061]
[1617996169373,3.65915655,58280.0,58279.0,0.27]
[1617996171176,3.71065655,58280.0,58279.0,0.27]
[1617996171677,3.65915655,58280.0,58279.0,0.27]
[1617996174981,3.71055655,58280.0,58279.0,0.27]
[1617996175184,3.65915655,58280.0,58279.0,0.27]
[1617996176585,3.65915655,58280.0,58270.0,0.10725655]
[1617996176786,3.65915655,58280.0,58271.0,0.01]
[1617996176985,3.65915655,58280.0,58279.0,0.26]
[1617996177185,3.65915655,58280.0,58270.0,0.10725655]
[1617996177485,3.65915655,58280.0,58272.0,0.27]
[1617996177684,3.65915655,58280.0,58271.0,0.27]
[1617996177886,3.65915655,58280.0,58270.0,0.10725655]
[1617996178088,3.65915655,58280.0,58273.0,0.27]
[1617996178287,3.65915655,58280.0,58271.0,0.27]
[1617996178485,0.10725655,58272.0,58271.0,0.27]
[1617996178686,0.10725655,58272.0,58270.0,0.10725655]
[1617996178985,0.10725655,58272.0,58271.0,0.27]
[1617996180990,0.10725655,58272.0,58271.0,0.36238]
[1617996184893,0.10725655,58272.0,58271.0,0.27]
[1617996190603,0.23424655,58272.0,58271.0,0.27]
[1617996194212,0.23424655,58272.0,58271.0,3.7084]
[1617996194912,0.23424655,58272.0,58271.0,0.27]
[1617996196124,0.10725655,58272.0,58271.0,0.27]
[1617996211739,0.43133588,58286.0,58271.0,0.27]
[1617996211740,0.43133588,58286.0,58280.0,2.6834]
[1617996211938,0.43133588,58286.0,58280.0,2.82542]
[1617996212240,0.43133588,58286.0,58281.0,0.27]
[1617996212438,0.43133588,58286.0,58285.0,2.8817]
[1617996212738,0.43133588,58286.0,58285.0,3.25895655]
[1617996213538,0.43133588,58286.0,58285.0,4.25895655]
[1617996214540,0.43133588,58286.0,58285.0,3.25895655]
[1617996218043,0.43133588,58286.0,58285.0,0.37725655]
[1617996218248,3.25423588,58286.0,58285.0,0.37725655]
[1617996219144,0.43133588,58286.0,58285.0,0.37725655]
[1617996219545,0.43133588,58286.0,58285.0,3.79965655]
[1617996220847,0.10725655,58288.0,58285.0,3.79965655]
[1617996221348,0.93237749,58286.0,58285.0,3.79965655]
[1617996226053,0.93237749,58286.0,58285.0,0.37725655]
[1617996226252,3.48717749,58286.0,58285.0,0.37725655]
[1617996226655,3.62718502,58286.0,58285.0,0.37725655]
[1617996228052,1.07238502,58286.0,58285.0,0.37725655]
[1617996228255,1.07238502,58286.0,58285.0,3.38205655]
[1617996228452,0.93237749,58286.0,58285.0,3.38205655]
[1617996230960,0.93237749,58286.0,58285.0,0.37725655]
[1617996231159,0.93237749,58286.0,58285.0,0.48425655]
[1617996232060,4.28187749,58286.0,58285.0,3.03025655]
[1617996232267,4.42219511,58286.0,58285.0,3.03025655]
[1617996232962,3.48981762,58286.0,58285.0,3.03025655]
[1617996236270,3.92617236,58286.0,58285.0,3.03025655]
[1617996236669,4.28169844,58286.0,58285.0,3.03025655]
[1617996237569,4.83713145,58286.0,58285.0,3.03025655]
[1617996239873,4.83713145,58286.0,58285.0,0.48425655]
[1617996240074,4.83713145,58286.0,58285.0,0.37725655]
[1617996241175,1.48763145,58286.0,58285.0,4.03405655]
[1617996241775,1.48763145,58286.0,58285.0,4.14721655]
[1617996241975,0.93219844,58286.0,58285.0,4.14721655]
[1617996242675,1.48771631,58286.0,58285.0,4.14721655]
[1617996243275,1.48771631,58286.0,58285.0,4.03405655]
[1617996245280,1.48771631,58286.0,58285.0,4.16368655]
[1617996245579,0.93219844,58286.0,58285.0,4.16368655]
[1617996248479,0.93219844,58286.0,58285.0,4.46971131]
[1617996249282,0.93219844,58286.0,58285.0,4.16368655]
[1617996249580,0.93219844,58286.0,58285.0,4.46966802]
[1617996250082,0.93219844,58286.0,58285.0,4.16368655]
[1617996252387,0.93219844,58286.0,58285.0,4.46958912]
[1617996252886,0.93219844,58286.0,58285.0,0.81278912]
[1617996253088,0.43635474,58286.0,58285.0,0.81278912]
[1617996254588,0.43635474,58286.0,58285.0,1.81278912]
[1617996254788,0.10725655,58288.0,58285.0,1.50688655]
[1617996255088,0.10725655,58288.0,58287.0,3.6807]
[1617996255488,0.10725655,58288.0,58287.0,3.9507]
[1617996257491,0.10725655,58288.0,58287.0,4.25650687]
[1617996259395,0.49737392,58290.0,58287.0,4.25650687]
[1617996259593,0.49737392,58290.0,58287.0,0.57580687]
[1617996259796,0.49737392,58290.0,58289.0,3.6779]
[1617996260094,0.49736583,58291.0,58289.0,4.6779]
[1617996260295,0.49736583,58291.0,58289.0,3.9479]
[1617996260497,0.4377682,58290.0,58289.0,4.2535569]
[1617996261098,0.4377682,58290.0,58289.0,4.62033198]
[1617996261297,0.4377682,58290.0,58289.0,5.62033198]
[1617996262001,0.43785831,58291.0,58289.0,5.62033198]
[1617996262197,0.43785831,58291.0,58289.0,4.62033198]
[1617996262398,0.43804063,58294.0,58289.0,4.62033198]
[1617996262597,0.43804063,58294.0,58290.0,1.0]
[1617996262800,0.99376326,58295.0,58294.0,1.0]
[1617996262999,0.5556232,58295.0,58294.0,1.47390399]
[1617996263199,0.5556232,58295.0,58294.0,1.48390399]
[1617996263699,0.5556232,58295.0,58294.0,0.48390399]
[1617996264104,0.5556232,58295.0,58294.0,1.48390399]
[1617996264703,0.5556232,58295.0,58294.0,1.4226626]
[1617996268105,0.5556232,58295.0,58294.0,1.11725655]
[1617996268506,0.5556232,58295.0,58294.0,1.4222413]
[1617996270209,0.5556232,58295.0,58294.0,0.4222413]
[1617996270409,0.5556232,58295.0,58294.0,0.11725655]
[1617996270808,0.5556232,58295.0,58294.0,1.11725655]
[1617996271309,0.5556232,58295.0,58294.0,1.42213567]
[1617996273316,0.5556232,58295.0,58294.0,1.78787192]
[1617996273515,0.5556232,58295.0,58294.0,0.78787192]
[1617996273718,0.5556232,58295.0,58294.0,1.78787192]
[1617996274116,0.5556232,58295.0,58294.0,2.2347157]
[1617996275216,0.5293232,58295.0,58294.0,2.74247632]
[1617996278320,0.5293232,58295.0,58294.0,1.11725655]
[1617996278518,0.5293232,58295.0,58294.0,2.29394004]
[1617996278718,0.5293232,58295.0,58294.0,5.85716826]
[1617996280026,0.5293232,58295.0,58294.0,5.3499771]
[1617996282525,0.69543482,58344.0,58294.0,2.2330771]
[1617996282526,0.43719644,58321.0,58294.0,2.2330771]
[1617996282722,0.43719644,58321.0,58310.0,1.0]
[1617996283125,0.43719644,58321.0,58317.0,1.10725655]
[1617996283626,0.4373088,58323.0,58317.0,1.11725655]
[1617996284225,0.43726904,58324.0,58317.0,1.11725655]
[1617996284926,0.43731474,58325.0,58317.0,1.11725655]
[1617996285328,0.43728024,58326.0,58317.0,1.11725655]
[1617996285837,0.43728024,58326.0,58317.0,0.11725655]
[1617996285838,2.6082,58318.0,58317.0,0.11725655]
[1617996287027,0.14225655,58318.0,58317.0,0.11725655]
[1617996287426,0.14225655,58318.0,58317.0,3.66075655]
[1617996295039,0.14225655,58318.0,58317.0,0.11725655]
[1617996295239,3.35775655,58318.0,58317.0,0.11725655]
[1617996299645,0.14225655,58318.0,58317.0,0.11725655]
[1617996299944,0.14225655,58318.0,58317.0,3.22665655]
[1617996301845,0.10725655,58318.0,58317.0,0.11725655]
[1617996302079,3.24695655,58318.0,58317.0,0.11725655]
[1617996303047,3.28195655,58318.0,58317.0,0.11725655]
[1617996306253,0.14225655,58318.0,58317.0,0.11725655]
[1617996306655,0.14225655,58318.0,58317.0,3.13095655]
[1617996318964,0.035,58318.0,58317.0,0.11725655]
[1617996319563,3.2087,58318.0,58317.0,0.11725655]
[1617996324169,3.6484077,58318.0,58317.0,0.11725655]
[1617996324571,3.2087,58318.0,58317.0,0.11725655]
[1617996324809,3.2087,58318.0,58317.0,0.4222874]
[1617996326773,3.64870881,58318.0,58317.0,0.4222874]
[1617996326973,0.47500881,58318.0,58317.0,0.4222874]
[1617996327774,0.035,58318.0,58317.0,0.4222874]
[1617996328074,0.4751035,58318.0,58317.0,3.6127874]
[1617996330375,0.4751035,58318.0,58317.0,3.97925111]
[1617996333783,0.035,58318.0,58317.0,3.30775655]
[1617996334084,0.035,58318.0,58317.0,3.98045432]
[1617996334085,0.47591809,58318.0,58317.0,3.98045432]
[1617996345601,0.61233427,58318.0,58317.0,3.98045432]
[1617996349704,0.61233427,58318.0,58317.0,0.78995432]
[1617996349906,3.43562427,58318.0,58317.0,0.78995432]
[1617996350106,3.29920809,58318.0,58317.0,0.78995432]
[1617996350405,3.43471409,58318.0,58317.0,0.78995432]
[1617996350606,3.43471409,58318.0,58317.0,0.42302826]
[1617996350908,3.43471409,58318.0,58317.0,0.78994348]
[1617996351307,3.93716173,58318.0,58317.0,0.42302826]
[1617996353310,4.93716173,58318.0,58317.0,0.42302826]
[1617996353509,4.93716173,58318.0,58317.0,0.11725655]
[1617996354711,3.93716173,58318.0,58317.0,0.11725655]
[1617996355912,4.90216173,58318.0,58317.0,0.11725655]
[1617996357415,4.90216173,58318.0,58317.0,0.01]
[1617996357817,2.23126173,58318.0,58314.0,0.27]
[1617996358218,1.15239,58318.0,58317.0,0.27]
[1617996358418,5.1213557,58318.0,58314.0,0.27]
[1617996358917,5.1213557,58318.0,58317.0,0.27]
[1617996358918,4.17709,58318.0,58317.0,0.27]
[1617996359119,4.17709,58318.0,58314.0,0.27]
[1617996359319,5.12139673,58318.0,58314.0,0.27]
[1617996359518,4.17709,58318.0,58317.0,0.27]
[1617996359729,4.17709,58318.0,58314.0,0.27]
[1617996359918,5.41046505,58318.0,58314.0,0.27]
[1617996360121,4.17709,58318.0,58317.0,0.27]
[1617996360322,4.17709,58318.0,58314.0,0.27]
[1617996360523,1.0,58317.0,58314.0,0.27]
[1617996360723,0.94417401,58315.0,58312.0,0.30576255]
[1617996360922,0.94417401,58315.0,58314.0,0.27]
[1617996361124,0.42830566,58317.0,58314.0,0.27]
[1617996361325,0.94425341,58315.0,58313.0,0.31576276]
[1617996361526,0.10725655,58314.0,58313.0,0.30576276]
[1617996362026,0.10725655,58314.0,58313.0,0.57576276]
[1617996362226,1.05167429,58314.0,58313.0,0.27]
[1617996362626,1.05167429,58314.0,58312.0,0.01]
[1617996362828,1.05167429,58314.0,58313.0,0.30576025]
[1617996363028,1.05167429,58314.0,58313.0,0.56576025]
[1617996363228,1.05167429,58314.0,58313.0,0.30576025]
[1617996363628,1.05167429,58314.0,58313.0,0.57576025]
[1617996363629,0.54933084,58314.0,58313.0,0.57576025]
[1617996364028,0.54933084,58314.0,58313.0,1.00386768]
[1617996365430,1.05250172,58314.0,58313.0,0.57576025]
[1617996366832,4.14850172,58314.0,58313.0,0.57576025]
[1617996367232,4.28536198,58314.0,58313.0,0.57576025]
[1617996368134,1.18936198,58314.0,58313.0,0.57576025]
[1617996368535,1.05250172,58314.0,58313.0,3.79076025]
[1617996371442,1.05250172,58314.0,58313.0,0.57576025]
[1617996371642,0.54933084,58314.0,58313.0,0.57576025]
[1617996372144,3.92093084,58314.0,58313.0,0.57576025]
[1617996372442,4.05777663,58314.0,58313.0,0.57576025]
[1617996372843,4.05777663,58314.0,58313.0,0.94252542]
[1617996373048,4.05777663,58314.0,58313.0,0.57576025]
[1617996373247,3.61570234,58314.0,58313.0,0.57576025]
[1617996373447,4.05861036,58314.0,58313.0,0.57576025]
[1617996374146,3.92172593,58314.0,58313.0,0.57576025]
[1617996374347,4.42495628,58314.0,58313.0,0.57576025]
[1617996374547,3.47885655,58314.0,58313.0,0.57576025]
[1617996374749,3.9217027,58314.0,58313.0,0.57576025]
[1617996375148,3.47885655,58314.0,58313.0,0.57576025]
[1617996375349,3.92170994,58314.0,58313.0,0.57576025]
[1617996375952,4.42511249,58314.0,58313.0,0.57576025]
[1617996376151,3.47885655,58314.0,58313.0,0.57576025]
[1617996376451,4.42552353,58314.0,58313.0,0.57576025]
[1617996377255,4.42552353,58314.0,58313.0,0.27]
[1617996377552,4.42552353,58314.0,58313.0,0.57560947]
[1617996377752,4.42552353,58314.0,58313.0,0.30560947]
[1617996377953,4.42552353,58314.0,58313.0,0.57560947]
[1617996378253,3.92198369,58314.0,58313.0,0.57560947]
[1617996387166,4.42631586,58314.0,58313.0,0.57560947]
[1617996387466,3.92198369,58314.0,58313.0,0.57560947]
[1617996387769,3.47885655,58314.0,58313.0,0.57560947]
[1617996387966,3.47885655,58314.0,58313.0,0.27]
[1617996388367,3.92284492,58314.0,58313.0,0.30548556]
[1617996388770,3.92284492,58314.0,58313.0,0.57548556]
[1617996389070,3.92284492,58314.0,58313.0,0.63669416]
[1617996393378,3.92284492,58314.0,58313.0,1.00331545]
[1617996394976,3.92284492,58314.0,58313.0,0.63669416]
[1617996395777,3.92284492,58314.0,58313.0,1.00335039]
[1617996400384,3.47885655,58314.0,58313.0,0.27]
[1617996400686,3.92318703,58314.0,58313.0,0.94233328]
[1617996400983,3.92318703,58314.0,58313.0,0.67233328]
[1617996401183,3.92318703,58314.0,58313.0,0.94233328]
[1617996401785,3.92318703,58314.0,58313.0,1.00354076]
[1617996402387,4.42807971,58314.0,58313.0,0.63681352]
[1617996403788,4.42807971,58314.0,58313.0,1.00362597]
[1617996407491,4.57817971,58314.0,58313.0,1.00362597]
[1617996408190,5.57817971,58314.0,58313.0,0.63681352]
[1617996408591,4.57817971,58314.0,58313.0,0.63681352]
[1617996409293,4.57817971,58314.0,58313.0,1.00377979]
[1617996415302,1.20657971,58314.0,58313.0,1.00377979]
[1617996415600,1.05647971,58314.0,58313.0,1.00377979]
[1617996415801,1.05647971,58314.0,58313.0,3.96237979]
[1617996424209,1.05647971,58314.0,58313.0,1.00377979]
[1617996424410,4.10627971,58314.0,58313.0,1.00377979]
[1617996424609,4.24546378,58314.0,58313.0,1.00377979]
[1617996429517,4.36671378,58314.0,58313.0,1.00377979]
[1617996429718,3.27830655,58314.0,58313.0,0.27]
[1617996429919,4.22842963,58314.0,58313.0,0.94304723]
[1617996430119,4.22842963,58314.0,58313.0,0.67304723]
[1617996430518,4.22842963,58314.0,58313.0,0.94304723]
[1617996431018,4.22842963,58314.0,58313.0,1.00425703]
[1617996432418,4.22842963,58314.0,58313.0,4.51175703]
[1617996438020,4.22842963,58314.0,58313.0,4.14464036]
[1617996438321,4.22842963,58314.0,58313.0,4.51174632]
[1617996438622,4.22842963,58314.0,58313.0,4.08343056]
[1617996441122,5.22842963,58314.0,58313.0,4.08343056]
[1617996441322,5.52203264,58314.0,58313.0,4.08343056]
[1617996442323,5.01665447,58314.0,58313.0,4.08343056]
[1617996442523,4.27830655,58314.0,58313.0,3.7775]
[1617996442728,4.27830655,58314.0,58313.0,4.08336713]
[1617996442729,5.22801764,58314.0,58313.0,4.08336713]
[1617996443425,5.52285777,58314.0,58313.0,4.08336713]
[1617996446429,5.52285777,58314.0,58313.0,0.57586713]
[1617996448333,4.52285777,58314.0,58313.0,0.27]
[1617996448734,4.22801764,58314.0,58312.0,0.30583235]
[1617996448934,1.09841178,58313.0,58312.0,0.30583235]
[1617996449134,1.09841178,58313.0,58311.0,0.30582594]
[1617996449334,0.45136936,58313.0,58312.0,0.01]
[1617996449735,1.40089973,58313.0,58311.0,0.30582594]
[1617996449935,0.45136936,58313.0,58312.0,0.32587405]
[1617996450336,1.40108805,58313.0,58312.0,0.30587405]
[1617996450635,1.09869699,58313.0,58312.0,0.32587405]
[1617996454339,1.09869699,58313.0,58312.0,0.02]
[1617996454841,1.09869699,58313.0,58312.0,0.30584852]
[1617996455139,0.22850655,58314.0,58312.0,0.27]
[1617996455339,0.95001816,58313.0,58312.0,3.78064697]
[1617996455539,4.23791816,58313.0,58312.0,3.51064697]
[1617996455940,4.38811583,58313.0,58312.0,3.78064697]
[1617996456340,4.38811583,58313.0,58312.0,3.4748]
[1617996456641,4.38811583,58313.0,58312.0,3.78064396]
[1617996458240,3.2879,58313.0,58312.0,3.4748]
[1617996458539,3.79323062,58313.0,58312.0,3.4748]
[1617996458740,4.23793369,58313.0,58312.0,3.78063928]
[1617996459140,4.23793369,58313.0,58312.0,0.57583928]
[1617996462345,0.95003369,58313.0,58312.0,0.57583928]
[1617996463145,0.95003369,58313.0,58312.0,3.62893928]
[1617996464447,0.22850655,58314.0,58312.0,3.62893928]
[1617996464647,0.95008618,58313.0,58312.0,3.62893928]
[1617996466147,0.95008618,58313.0,58312.0,3.99595831]
[1617996466546,0.95008618,58313.0,58312.0,4.10321486]
[1617996467249,0.44472764,58313.0,58312.0,4.10321486]
[1617996468450,0.44472764,58313.0,58312.0,4.55171921]
[1617996469849,0.44537342,58314.0,58312.0,4.55171921]
[1617996470050,0.44534244,58313.0,58312.0,4.70164921]
[1617996470351,0.44534952,58314.0,58312.0,1.64854921]
[1617996470550,0.44534952,58314.0,58313.0,1.18209836]
[1617996470949,0.44534952,58314.0,58313.0,1.45209836]
[1617996474753,0.44521829,58315.0,58313.0,1.45209836]
[1617996475154,0.44521829,58315.0,58314.0,0.73346621]
[1617996475555,0.44521829,58315.0,58314.0,1.00346621]
[1617996476054,0.44521829,58315.0,58314.0,1.15581621]
[1617996479157,0.44521829,58315.0,58314.0,1.00346621]
[1617996485664,0.55448829,58315.0,58314.0,1.00346621]
[1617996486865,0.55448829,58315.0,58314.0,0.63678454]
[1617996487065,4.20408829,58315.0,58314.0,0.63678454]
[1617996487366,4.35576055,58315.0,58314.0,0.57556806]
[1617996488468,4.86178497,58315.0,58314.0,0.27]
[1617996488868,4.86178497,58315.0,58313.0,0.27]
[1617996489168,1.1026726,58314.0,58312.0,0.4126864]
[1617996489469,0.95109067,58313.0,58312.0,0.10725655]
[1617996489768,0.95109067,58313.0,58312.0,0.37725655]
[1617996490673,0.44519783,58313.0,58312.0,0.68268836]
[1617996494372,0.95126543,58313.0,58312.0,0.37725655]
[1617996494572,0.44519783,58313.0,58312.0,0.68268677]
[1617996496072,0.95124873,58313.0,58312.0,0.68268677]
[1617996496274,0.44519783,58313.0,58312.0,0.68268677]
[1617996502679,3.63949783,58313.0,58312.0,0.68268677]
[1617996503081,3.79082337,58313.0,58312.0,0.68268677]
[1617996504682,0.59652337,58313.0,58312.0,0.68268677]
[1617996505083,0.44519783,58313.0,58312.0,0.68268677]
[1617996506887,0.10725655,58317.0,58312.0,3.65405655]
[1617996507086,0.44544045,58313.0,58312.0,3.65405655]
[1617996507488,0.44544045,58313.0,58312.0,3.95953085]
[1617996510190,0.10725655,58317.0,58312.0,3.65405655]
[1617996510392,0.44549943,58313.0,58312.0,3.95955117]
[1617996512397,0.951805,58313.0,58312.0,3.95955117]
[1617996513700,0.951805,58313.0,58312.0,3.65405655]
[1617996514298,0.951805,58313.0,58312.0,3.9595901]
[1617996516098,0.10725655,58317.0,58312.0,3.65405655]
[1617996516499,0.95167469,58313.0,58312.0,3.95960231]
[1617996522209,0.95167469,58313.0,58312.0,3.65405655]
[1617996522410,0.95167469,58313.0,58312.0,3.9596366]
[1617996524917,0.44547121,58313.0,58312.0,3.9596366]
[1617996525718,0.44547121,58313.0,58312.0,4.32633164]
[1617996528118,0.44547121,58313.0,58312.0,1.04953164]
[1617996528722,3.44767121,58313.0,58312.0,3.59063164]
[1617996529125,0.59871303,58313.0,58312.0,3.59063164]
[1617996529420,0.44547121,58313.0,58312.0,1.04953164]
[1617996538837,0.44547121,58313.0,58312.0,0.94227509]
[1617996539339,0.44547121,58313.0,58312.0,1.04953164]
[1617996540237,0.44547121,58313.0,58312.0,1.49789463]
[1617996549747,0.44547121,58313.0,58312.0,4.26439463]
[1617996550551,0.44547121,58313.0,58312.0,3.81603164]
[1617996550853,0.44547121,58313.0,58312.0,1.49791059]
[1617996557196,0.56234121,58313.0,58312.0,1.49791059]
[1617996558197,0.56234121,58313.0,58312.0,1.04953164]
[1617996562168,0.44547121,58313.0,58312.0,1.04953164]
[1617996563972,0.44547121,58313.0,58312.0,1.49788662]
[1617996564571,0.44547121,58313.0,58312.0,1.04953164]
[1617996570180,0.49697121,58313.0,58312.0,1.04953164]
[1617996570379,0.44547121,58313.0,58312.0,1.04953164]
[1617996591401,0.95248962,58313.0,58312.0,1.04953164]
[1617996591697,1.04827962,58313.0,58312.0,1.04953164]
[1617996593302,0.54126121,58313.0,58312.0,1.04953164]
[1617996594502,0.09579,58313.0,58312.0,0.37725655]
[1617996594702,0.10725655,58315.0,58312.0,0.37725655]
[1617996595005,0.44620488,58313.0,58312.0,1.05033745]
[1617996600915,0.44620488,58313.0,58312.0,3.95103745]
[1617996602414,0.44620488,58313.0,58312.0,4.39974284]
[1617996604240,0.59537488,58313.0,58312.0,3.95103745]
[1617996604644,1.10218047,58313.0,58312.0,3.95103745]
[1617996604818,1.10218047,58313.0,58312.0,1.05033745]
[1617996605116,4.76158047,58313.0,58312.0,0.9430809]
[1617996605315,4.76158047,58313.0,58312.0,0.6730809]
[1617996605615,7.41734305,58313.0,58312.0,0.6730809]
[1617996605829,7.61734305,58313.0,58312.0,0.6730809]
[1617996606018,7.41734305,58313.0,58309.0,0.3059801]
[1617996606516,7.41734305,58313.0,58293.0,0.0918416]